[Event "*** Titled Tuesday Blitz"]
[Site "Chess.com"]
[Date "2020.10.27"]
[Round "8"]
[White "A-Fier"]
[Black "TengisChess"]
[Result "0-1"]
[WhiteElo "2760"]
[BlackElo "2629"]
[TimeControl "180+1"]
[EndTime "11:29:38 PDT"]
[Termination "TengisChess won by resignation"]

1. d4 {[%clk 0:01:52.8]} 1... Nf6 {[%clk 0:02:55.2]} 2. Nf3 {[%clk 0:01:52.5]}
2... d5 {[%clk 0:02:54.3]} 3. c4 {[%clk 0:01:52.2]} 3... c6 {[%clk 0:02:54.2]}
4. Nc3 {[%clk 0:01:52.9]} 4... e6 {[%clk 0:02:50.1]} 5. Bg5 {[%clk 0:01:51]}
5... Nbd7 {[%clk 0:02:34.4]} 6. cxd5 {[%clk 0:01:47.8]} 6... exd5 {[%clk
0:02:32]} 7. e3 {[%clk 0:01:48.1]} 7... Qa5 {[%clk 0:02:31.6]} 8. Nd2 {[%clk
0:01:40.5]} 8... Bb4 {[%clk 0:02:27.9]} 9. Qc2 {[%clk 0:01:39.3]} 9... h6 {[%clk
0:02:22.9]} 10. Bh4 {[%clk 0:01:38.7]} 10... O-O {[%clk 0:02:21.1]} 11. Bd3
{[%clk 0:01:37.8]} 11... Re8 {[%clk 0:02:12.7]} 12. O-O {[%clk 0:01:37.6]} 12...
Bd6 {[%clk 0:02:08.4]} 13. Rae1 {[%clk 0:01:33.7]} 13... Qc7 {[%clk 0:02:02.5]}
14. Bg3 {[%clk 0:01:28.7]} 14... Bxg3 {[%clk 0:01:59]} 15. hxg3 {[%clk
0:01:28.2]} 15... Nb6 {[%clk 0:01:58.8]} 16. Nf3 {[%clk 0:01:25.3]} 16... Be6
{[%clk 0:01:56]} 17. Ne5 {[%clk 0:01:25]} 17... a6 {[%clk 0:01:49.5]} 18. f4
{[%clk 0:01:24.5]} 18... c5 {[%clk 0:01:46.1]} 19. Qf2 {[%clk 0:01:21.8]} 19...
Rac8 {[%clk 0:01:40.5]} 20. Qf3 {[%clk 0:01:16.7]} 20... Qd6 {[%clk 0:01:37]}
21. g4 {[%clk 0:01:15.1]} 21... cxd4 {[%clk 0:01:34.3]} 22. exd4 {[%clk
0:01:14.7]} 22... Nc4 {[%clk 0:01:31]} 23. g5 {[%clk 0:01:11.8]} 23... hxg5
{[%clk 0:01:27.5]} 24. fxg5 {[%clk 0:01:11]} 24... Nxe5 {[%clk 0:01:24.1]} 25.
dxe5 {[%clk 0:00:48.3]} 25... Qb6+ {[%clk 0:01:21.8]} 26. Kh1 {[%clk 0:00:46.9]}
26... Ne4 {[%clk 0:01:17.1]} 27. Nxe4 {[%clk 0:00:34.5]} 27... dxe4 {[%clk
0:01:13.5]} 28. Qxe4 {[%clk 0:00:35.4]} 28... g6 {[%clk 0:01:11.2]} 29. Rf6
{[%clk 0:00:36]} 29... Rc6 {[%clk 0:01:04]} 30. Ref1 {[%clk 0:00:18.6]} 30...
Bxa2 {[%clk 0:00:59.6]} 31. Qh4 {[%clk 0:00:13.2]} 31... Rxf6 {[%clk 0:00:51.8]}
32. exf6 {[%clk 0:00:12.4]} 32... Qc5 {[%clk 0:00:52]} 33. Bxg6 {[%clk
0:00:12.2]} 33... fxg6 {[%clk 0:00:47.8]} 34. Qh6 {[%clk 0:00:12.4]} 34... Kf7
{[%clk 0:00:39.5]} 35. Qg7+ {[%clk 0:00:11.8]} 35... Ke6 {[%clk 0:00:36.6]} 36.
f7 {[%clk 0:00:12.4]} 36... Rf8 {[%clk 0:00:33]} 37. Qf6+ {[%clk 0:00:12.6]}
37... Kd7 {[%clk 0:00:30.4]} 38. Rd1+ {[%clk 0:00:11.1]} 38... Kc8 {[%clk
0:00:26.9]} 39. Re1 {[%clk 0:00:10.8]} 39... Rxf7 {[%clk 0:00:23.9]} 40. Re8+
{[%clk 0:00:10.8]} 40... Kd7 {[%clk 0:00:20.7]} 41. Qd8+ {[%clk 0:00:08.7]}
41... Kc6 {[%clk 0:00:20.4]} 42. Qc8+ {[%clk 0:00:05.2]} 42... Rc7 {[%clk
0:00:18]} 43. Qe6+ {[%clk 0:00:03.7]} 43... Bxe6 {[%clk 0:00:17.3]} 0-1

[Event "*** Titled Tuesday Blitz"]
[Site "Chess.com"]
[Date "2020.10.27"]
[Round "8"]
[White "Grandmaster2B"]
[Black "Jungle_Jaguar"]
[Result "1-0"]
[WhiteElo "2497"]
[BlackElo "2623"]
[TimeControl "180+1"]
[EndTime "11:29:41 PDT"]
[Termination "Grandmaster2B won by checkmate"]

1. e4 {[%clk 0:03:00.9]} 1... c5 {[%clk 0:02:57.7]} 2. Nf3 {[%clk 0:03:01.2]}
2... d6 {[%clk 0:02:57.9]} 3. d4 {[%clk 0:03:01.7]} 3... cxd4 {[%clk 0:02:58.8]}
4. Nxd4 {[%clk 0:03:02.6]} 4... Nf6 {[%clk 0:02:59.4]} 5. Nc3 {[%clk 0:03:03]}
5... Nc6 {[%clk 0:02:59.2]} 6. Bg5 {[%clk 0:03:01.9]} 6... e6 {[%clk 0:02:59.5]}
7. Qd2 {[%clk 0:03:02.3]} 7... a6 {[%clk 0:02:58.8]} 8. O-O-O {[%clk 0:03:02.4]}
8... Bd7 {[%clk 0:02:59.5]} 9. f4 {[%clk 0:03:02.1]} 9... b5 {[%clk 0:02:52.3]}
10. Qe3 {[%clk 0:02:52.1]} 10... Qb6 {[%clk 0:02:43.1]} 11. Nf5 {[%clk 0:02:21]}
11... Qxe3+ {[%clk 0:02:39.6]} 12. Nxe3 {[%clk 0:02:21.9]} 12... b4 {[%clk
0:02:35.9]} 13. Bxf6 {[%clk 0:02:18.6]} 13... gxf6 {[%clk 0:02:36.8]} 14. Ne2
{[%clk 0:02:19.1]} 14... h5 {[%clk 0:02:33.1]} 15. g3 {[%clk 0:02:13.1]} 15...
a5 {[%clk 0:02:29.9]} 16. Bg2 {[%clk 0:02:12.6]} 16... a4 {[%clk 0:02:20.5]} 17.
Rhf1 {[%clk 0:02:04.4]} 17... Rc8 {[%clk 0:01:57.9]} 18. Nc4 {[%clk 0:02:02.2]}
18... b3 {[%clk 0:01:48.1]} 19. axb3 {[%clk 0:01:44.5]} 19... axb3 {[%clk
0:01:47.2]} 20. c3 {[%clk 0:01:37.3]} 20... Ra8 {[%clk 0:01:20.4]} 21. Kd2
{[%clk 0:01:05.8]} 21... Na5 {[%clk 0:01:02]} 22. Nxa5 {[%clk 0:00:57.2]} 22...
Rxa5 {[%clk 0:01:02.9]} 23. Ra1 {[%clk 0:00:57.9]} 23... Rxa1 {[%clk 0:01:01.3]}
24. Rxa1 {[%clk 0:00:58.8]} 24... h4 {[%clk 0:01:01.6]} 25. Bf3 {[%clk
0:00:34.1]} 25... hxg3 {[%clk 0:01:00.8]} 26. hxg3 {[%clk 0:00:35]} 26... Rh2
{[%clk 0:00:57.9]} 27. Rh1 {[%clk 0:00:35.4]} 27... Rf2 {[%clk 0:00:55.8]} 28.
Ke3 {[%clk 0:00:34.5]} 28... Rxf3+ {[%clk 0:00:51.4]} 29. Kxf3 {[%clk
0:00:35.4]} 29... f5 {[%clk 0:00:52.3]} 30. Nd4 {[%clk 0:00:29.7]} 30... Bg7
{[%clk 0:00:43.4]} 31. Nxb3 {[%clk 0:00:20.3]} 31... fxe4+ {[%clk 0:00:41.5]}
32. Ke3 {[%clk 0:00:20.5]} 32... f5 {[%clk 0:00:35.3]} 33. Rh7 {[%clk
0:00:20.1]} 33... Kf8 {[%clk 0:00:35.5]} 34. Nd4 {[%clk 0:00:18.7]} 34... e5
{[%clk 0:00:32.6]} 35. Ne2 {[%clk 0:00:14.3]} 35... Kf7 {[%clk 0:00:31.3]} 36.
Rh1 {[%clk 0:00:12.8]} 36... Kg6 {[%clk 0:00:31.2]} 37. Rd1 {[%clk 0:00:12.2]}
37... Bf8 {[%clk 0:00:28.7]} 38. fxe5 {[%clk 0:00:12.3]} 38... Ba4 {[%clk
0:00:28.4]} 39. Rd4 {[%clk 0:00:09.7]} 39... Bd7 {[%clk 0:00:19.1]} 40. Nf4+
{[%clk 0:00:09.5]} 40... Kf7 {[%clk 0:00:18.8]} 41. exd6 {[%clk 0:00:09.7]}
41... Kf6 {[%clk 0:00:19.4]} 42. c4 {[%clk 0:00:08.7]} 42... Ke5 {[%clk
0:00:19.1]} 43. Rd5+ {[%clk 0:00:07.6]} 43... Kf6 {[%clk 0:00:19.2]} 44. c5
{[%clk 0:00:08.1]} 44... Bc6 {[%clk 0:00:17.8]} 45. d7 {[%clk 0:00:09]} 45...
Bxd5 {[%clk 0:00:15]} 46. Nxd5+ {[%clk 0:00:08.7]} 46... Ke5 {[%clk 0:00:13.7]}
47. d8=Q {[%clk 0:00:09.6]} 47... Bxc5+ {[%clk 0:00:14.3]} 48. Ke2 {[%clk
0:00:09.7]} 48... f4 {[%clk 0:00:14.4]} 49. Nxf4 {[%clk 0:00:08.6]} 49... e3
{[%clk 0:00:14]} 50. Qd5+ {[%clk 0:00:09.5]} 50... Kf6 {[%clk 0:00:13.7]} 51.
Qe6+ {[%clk 0:00:09.8]} 51... Kg5 {[%clk 0:00:13.9]} 52. Qg6# {[%clk 0:00:09.8]}
1-0

[Event "*** Titled Tuesday Blitz"]
[Site "Chess.com"]
[Date "2020.10.27"]
[Round "8"]
[White "Neftegor"]
[Black "sopo-tereladze"]
[Result "1-0"]
[WhiteElo "2462"]
[BlackElo "2318"]
[TimeControl "180+1"]
[EndTime "11:29:41 PDT"]
[Termination "Neftegor won by resignation"]

1. Nf3 {[%clk 0:03:00.9]} 1... Nf6 {[%clk 0:02:59.1]} 2. c4 {[%clk 0:03:01.8]}
2... e6 {[%clk 0:02:57.5]} 3. g3 {[%clk 0:03:00.6]} 3... d5 {[%clk 0:02:57.9]}
4. Bg2 {[%clk 0:03:01.5]} 4... Be7 {[%clk 0:02:58.2]} 5. O-O {[%clk 0:03:02.4]}
5... O-O {[%clk 0:02:58.7]} 6. d4 {[%clk 0:03:01.9]} 6... dxc4 {[%clk
0:02:58.4]} 7. Qc2 {[%clk 0:03:02]} 7... c5 {[%clk 0:02:55.2]} 8. Rd1 {[%clk
0:02:59.7]} 8... Nc6 {[%clk 0:02:28.7]} 9. dxc5 {[%clk 0:02:58]} 9... Qa5 {[%clk
0:02:26.6]} 10. Qxc4 {[%clk 0:02:51.2]} 10... Qxc5 {[%clk 0:02:24.6]} 11. Na3
{[%clk 0:02:40.1]} 11... Bd7 {[%clk 0:02:14.8]} 12. Be3 {[%clk 0:02:38.4]} 12...
Qxc4 {[%clk 0:02:14.1]} 13. Nxc4 {[%clk 0:02:39.3]} 13... Rfd8 {[%clk 0:02:11]}
14. Nfe5 {[%clk 0:02:35.9]} 14... Be8 {[%clk 0:01:22.8]} 15. Nxc6 {[%clk
0:02:29.7]} 15... Bxc6 {[%clk 0:01:21]} 16. Bxc6 {[%clk 0:02:29.1]} 16... bxc6
{[%clk 0:01:21.9]} 17. Rxd8+ {[%clk 0:02:21.7]} 17... Bxd8 {[%clk 0:01:22.8]}
18. Rc1 {[%clk 0:02:22.1]} 18... Nd5 {[%clk 0:01:18.4]} 19. Bd2 {[%clk 0:02:21]}
19... Bf6 {[%clk 0:01:15.2]} 20. b3 {[%clk 0:02:19.1]} 20... c5 {[%clk
0:01:00.1]} 21. e4 {[%clk 0:01:50.2]} 21... Nb6 {[%clk 0:00:56.1]} 22. Be3
{[%clk 0:01:47]} 22... Bd4 {[%clk 0:00:47.1]} 23. Kf1 {[%clk 0:01:34.8]} 23...
h6 {[%clk 0:00:41.2]} 24. Ke2 {[%clk 0:01:34.5]} 24... Nxc4 {[%clk 0:00:36.6]}
25. Rxc4 {[%clk 0:01:33.8]} 25... e5 {[%clk 0:00:36.1]} 26. Bd2 {[%clk
0:01:27.7]} 26... Rb8 {[%clk 0:00:23.6]} 27. Ra4 {[%clk 0:01:26.2]} 27... Rb7
{[%clk 0:00:22.5]} 28. f4 {[%clk 0:01:23]} 28... f6 {[%clk 0:00:21.7]} 29. f5
{[%clk 0:01:18.6]} 29... Kf7 {[%clk 0:00:20.7]} 30. Kd3 {[%clk 0:01:18.3]} 30...
Ke7 {[%clk 0:00:20.1]} 31. Kc4 {[%clk 0:01:18.7]} 31... Kd7 {[%clk 0:00:19]} 32.
Ra6 {[%clk 0:01:16.3]} 32... Kc7 {[%clk 0:00:18.1]} 33. Ba5+ {[%clk 0:01:15.7]}
33... Kd7 {[%clk 0:00:16.1]} 34. Kd5 {[%clk 0:01:15.3]} 34... Kc8 {[%clk
0:00:13.1]} 35. Rc6+ {[%clk 0:01:10.2]} 35... Kb8 {[%clk 0:00:12.5]} 36. Re6
{[%clk 0:01:04.9]} 36... Rb5 {[%clk 0:00:11.8]} 37. Re8+ {[%clk 0:00:54.7]}
37... Kb7 {[%clk 0:00:11.2]} 38. Re7+ {[%clk 0:00:54.9]} 38... Ka6 {[%clk
0:00:11]} 39. Bd2 {[%clk 0:00:53.7]} 39... Rb7 {[%clk 0:00:07.7]} 40. Ke6 {[%clk
0:00:29.2]} 40... Rxe7+ {[%clk 0:00:05.4]} 41. Kxe7 {[%clk 0:00:30.1]} 41... Kb5
{[%clk 0:00:05.9]} 42. Kf7 {[%clk 0:00:30.2]} 42... a5 {[%clk 0:00:05.8]} 43.
a4+ {[%clk 0:00:28.9]} 43... Kc6 {[%clk 0:00:05]} 44. Kxg7 {[%clk 0:00:25.2]}
44... c4 {[%clk 0:00:05.9]} 45. bxc4 {[%clk 0:00:24]} 45... Kc5 {[%clk
0:00:05.8]} 46. Kxf6 {[%clk 0:00:23.6]} 46... Kxc4 {[%clk 0:00:06.7]} 47. Bxh6
{[%clk 0:00:20.6]} 47... Kd3 {[%clk 0:00:07.6]} 48. Ke6 {[%clk 0:00:20.5]} 48...
Kxe4 {[%clk 0:00:08]} 49. f6 {[%clk 0:00:21.1]} 49... Bc5 {[%clk 0:00:05.7]} 50.
f7 {[%clk 0:00:21.1]} 1-0

[Event "*** Titled Tuesday Blitz"]
[Site "Chess.com"]
[Date "2020.10.27"]
[Round "8"]
[White "bascheyaro"]
[Black "Oleksandr_Bortnyk"]
[Result "0-1"]
[WhiteElo "2742"]
[BlackElo "2915"]
[TimeControl "180+1"]
[EndTime "11:29:43 PDT"]
[Termination "Oleksandr_Bortnyk won on time"]

1. d4 {[%clk 0:03:00.9]} 1... d6 {[%clk 0:02:57.3]} 2. Nf3 {[%clk 0:03:00.5]}
2... Nf6 {[%clk 0:02:57.6]} 3. Bg5 {[%clk 0:02:59.9]} 3... Ne4 {[%clk
0:02:50.1]} 4. Bh4 {[%clk 0:03:00]} 4... c6 {[%clk 0:02:50]} 5. Nbd2 {[%clk
0:02:59.8]} 5... Bf5 {[%clk 0:02:50.1]} 6. e3 {[%clk 0:02:58.6]} 6... Nxd2
{[%clk 0:02:44.5]} 7. Qxd2 {[%clk 0:02:58.4]} 7... Qb6 {[%clk 0:02:42.8]} 8. c3
{[%clk 0:02:54]} 8... Nd7 {[%clk 0:02:42]} 9. Be2 {[%clk 0:02:49.8]} 9... g6
{[%clk 0:02:36]} 10. O-O {[%clk 0:02:49.1]} 10... Bg7 {[%clk 0:02:35.9]} 11. Bd3
{[%clk 0:02:41.6]} 11... Nf6 {[%clk 0:02:17.6]} 12. Bxf5 {[%clk 0:02:39]} 12...
gxf5 {[%clk 0:02:18.5]} 13. Bxf6 {[%clk 0:02:38.4]} 13... Bxf6 {[%clk
0:02:17.6]} 14. Qc2 {[%clk 0:02:38.9]} 14... Qa5 {[%clk 0:01:57.3]} 15. b4
{[%clk 0:02:34.3]} 15... Qd5 {[%clk 0:01:56.6]} 16. Nd2 {[%clk 0:02:23.1]} 16...
Rg8 {[%clk 0:01:53.9]} 17. e4 {[%clk 0:02:11.6]} 17... fxe4 {[%clk 0:01:51.3]}
18. Nxe4 {[%clk 0:02:10.7]} 18... O-O-O {[%clk 0:01:48.4]} 19. a4 {[%clk
0:02:05.9]} 19... Bh4 {[%clk 0:01:28.1]} 20. Ng3 {[%clk 0:02:04.4]} 20... h5
{[%clk 0:01:14.2]} 21. Qf5+ {[%clk 0:02:03.4]} 21... Qxf5 {[%clk 0:01:13.4]} 22.
Nxf5 {[%clk 0:02:04.3]} 22... Bf6 {[%clk 0:01:13]} 23. Rfe1 {[%clk 0:01:42.3]}
23... Kd7 {[%clk 0:01:12.4]} 24. b5 {[%clk 0:01:35.8]} 24... Rc8 {[%clk
0:01:09.2]} 25. Ra3 {[%clk 0:01:27.3]} 25... c5 {[%clk 0:01:05.2]} 26. Ra2
{[%clk 0:00:34.1]} 26... e6 {[%clk 0:00:55.4]} 27. Ng3 {[%clk 0:00:32.6]} 27...
cxd4 {[%clk 0:00:53.8]} 28. Nxh5 {[%clk 0:00:32.3]} 28... Bh8 {[%clk 0:00:46.6]}
29. cxd4 {[%clk 0:00:32.2]} 29... Bxd4 {[%clk 0:00:47.5]} 30. Rd1 {[%clk
0:00:32.6]} 30... d5 {[%clk 0:00:41.9]} 31. g3 {[%clk 0:00:26.7]} 31... Bh8
{[%clk 0:00:36.2]} 32. Nf4 {[%clk 0:00:22]} 32... Rc4 {[%clk 0:00:35.4]} 33. Nd3
{[%clk 0:00:20]} 33... Rgg4 {[%clk 0:00:34.6]} 34. Kg2 {[%clk 0:00:18.8]} 34...
Ke7 {[%clk 0:00:30.4]} 35. a5 {[%clk 0:00:19.1]} 35... Rgd4 {[%clk 0:00:29.4]}
36. a6 {[%clk 0:00:18]} 36... b6 {[%clk 0:00:29.7]} 37. Rad2 {[%clk 0:00:16.8]}
37... Bg7 {[%clk 0:00:27.4]} 38. h4 {[%clk 0:00:16.5]} 38... Rc3 {[%clk
0:00:24.2]} 39. Nf4 {[%clk 0:00:14.9]} 39... Rxd2 {[%clk 0:00:23.2]} 40. Rxd2
{[%clk 0:00:15.8]} 40... Rc5 {[%clk 0:00:22.9]} 41. h5 {[%clk 0:00:13.5]} 41...
Rxb5 {[%clk 0:00:22.5]} 42. Rc2 {[%clk 0:00:14.1]} 42... Rc5 {[%clk 0:00:23.1]}
43. Rxc5 {[%clk 0:00:12.8]} 43... bxc5 {[%clk 0:00:23.4]} 44. Nd3 {[%clk
0:00:12.8]} 44... c4 {[%clk 0:00:22.3]} 45. Nb4 {[%clk 0:00:10.8]} 45... Kd6
{[%clk 0:00:22.6]} 46. f4 {[%clk 0:00:11.3]} 46... Kc5 {[%clk 0:00:22.4]} 47.
Na2 {[%clk 0:00:11.4]} 47... d4 {[%clk 0:00:22.4]} 48. Kf3 {[%clk 0:00:11.8]}
48... f5 {[%clk 0:00:22.5]} 49. g4 {[%clk 0:00:09.6]} 49... fxg4+ {[%clk
0:00:23.4]} 50. Kxg4 {[%clk 0:00:10.1]} 50... d3 {[%clk 0:00:22.1]} 51. Kf3
{[%clk 0:00:10.2]} 51... Kd4 {[%clk 0:00:22]} 52. Nb4 {[%clk 0:00:10]} 52... c3
{[%clk 0:00:22.4]} 53. Nc6+ {[%clk 0:00:10.4]} 53... Kc5 {[%clk 0:00:22.5]} 0-1

[Event "*** Titled Tuesday Blitz"]
[Site "Chess.com"]
[Date "2020.10.27"]
[Round "8"]
[White "Mikasinski"]
[Black "chessmachine14"]
[Result "1-0"]
[WhiteElo "2488"]
[BlackElo "2340"]
[TimeControl "180+1"]
[EndTime "11:29:45 PDT"]
[Termination "Mikasinski won on time"]

1. e4 {[%clk 0:02:57.3]} 1... c5 {[%clk 0:02:59.4]} 2. Nf3 {[%clk 0:02:56.6]}
2... e6 {[%clk 0:02:58.8]} 3. d4 {[%clk 0:02:42.5]} 3... cxd4 {[%clk 0:02:58.7]}
4. Nxd4 {[%clk 0:02:43.4]} 4... Nf6 {[%clk 0:02:58.7]} 5. Nc3 {[%clk 0:02:24.8]}
5... d6 {[%clk 0:02:57.9]} 6. f4 {[%clk 0:02:06.6]} 6... Be7 {[%clk 0:02:54.5]}
7. Be2 {[%clk 0:02:04.8]} 7... O-O {[%clk 0:02:53.2]} 8. O-O {[%clk 0:02:02.5]}
8... Nc6 {[%clk 0:02:52.7]} 9. Kh1 {[%clk 0:01:57.4]} 9... Nxd4 {[%clk
0:02:46.8]} 10. Qxd4 {[%clk 0:01:56]} 10... b6 {[%clk 0:02:47.3]} 11. Bf3 {[%clk
0:01:54.4]} 11... Bb7 {[%clk 0:02:47.5]} 12. Rd1 {[%clk 0:01:50.3]} 12... Nd7
{[%clk 0:02:47.2]} 13. Nb5 {[%clk 0:01:45]} 13... e5 {[%clk 0:02:21.2]} 14. fxe5
{[%clk 0:01:33.4]} 14... Nxe5 {[%clk 0:02:20.6]} 15. Nxd6 {[%clk 0:01:33]} 15...
Bxd6 {[%clk 0:01:16.8]} 16. Qxd6 {[%clk 0:01:31]} 16... Qxd6 {[%clk 0:01:16.9]}
17. Rxd6 {[%clk 0:01:31.7]} 17... Nc4 {[%clk 0:01:14.3]} 18. Rd7 {[%clk
0:01:28]} 18... Bc6 {[%clk 0:01:06.1]} 19. Rc7 {[%clk 0:01:26.4]} 19... Rfc8
{[%clk 0:01:05.3]} 20. Rxc8+ {[%clk 0:01:24.5]} 20... Rxc8 {[%clk 0:01:04.8]}
21. b3 {[%clk 0:01:18.6]} 21... Nd6 {[%clk 0:01:02.2]} 22. e5 {[%clk 0:01:00.6]}
22... Bxf3 {[%clk 0:01:01.9]} 23. gxf3 {[%clk 0:00:49.5]} 23... Nf5 {[%clk
0:00:58.1]} 24. c4 {[%clk 0:00:46.1]} 24... Nd4 {[%clk 0:00:54.5]} 25. f4 {[%clk
0:00:31.2]} 25... Nc2 {[%clk 0:00:29.2]} 26. Rb1 {[%clk 0:00:30]} 26... Rd8
{[%clk 0:00:28]} 27. Kg2 {[%clk 0:00:20.3]} 27... Rd1 {[%clk 0:00:25.5]} 28. Kf3
{[%clk 0:00:17.6]} 28... Nb4 {[%clk 0:00:19.4]} 29. Ke2 {[%clk 0:00:05.8]} 29...
Rh1 {[%clk 0:00:19.4]} 30. Kd2 {[%clk 0:00:01.8]} 30... Nxa2 {[%clk 0:00:18.9]}
31. Ra1 {[%clk 0:00:01.3]} 31... Rxh2+ {[%clk 0:00:18.8]} 32. Kd3 {[%clk
0:00:01.2]} 32... Nb4+ {[%clk 0:00:16.6]} 33. Ke4 {[%clk 0:00:01.8]} 33... Na2
{[%clk 0:00:14]} 34. Ba3 {[%clk 0:00:01.5]} 34... h5 {[%clk 0:00:12.8]} 35. Kf5
{[%clk 0:00:01.9]} 35... h4 {[%clk 0:00:12.8]} 36. Ke4 {[%clk 0:00:02.4]} 36...
h3 {[%clk 0:00:13.1]} 37. Bd6 {[%clk 0:00:02.6]} 37... Rc2 {[%clk 0:00:11.2]}
38. Kf3 {[%clk 0:00:02.7]} 38... h2 {[%clk 0:00:11.1]} 39. Rh1 {[%clk
0:00:03.4]} 39... Nc1 {[%clk 0:00:09.4]} 40. Kg3 {[%clk 0:00:02.7]} 40... Ne2+
{[%clk 0:00:05.7]} 41. Kg4 {[%clk 0:00:02.4]} 41... Nd4 {[%clk 0:00:01.9]} 42.
f5 {[%clk 0:00:02.7]} 1-0

[Event "*** Titled Tuesday Blitz"]
[Site "Chess.com"]
[Date "2020.10.27"]
[Round "8"]
[White "Unknown_IM"]
[Black "IngOscarArdila"]
[Result "1-0"]
[WhiteElo "2327"]
[BlackElo "2159"]
[TimeControl "180+1"]
[EndTime "11:29:45 PDT"]
[Termination "Unknown_IM won on time"]

1. e4 {[%clk 0:03:00.9]} 1... e5 {[%clk 0:02:59.8]} 2. Nf3 {[%clk 0:02:58.5]}
2... Nc6 {[%clk 0:02:59.7]} 3. Nc3 {[%clk 0:02:59.4]} 3... Nf6 {[%clk 0:02:59]}
4. d4 {[%clk 0:02:58]} 4... exd4 {[%clk 0:02:58.5]} 5. Nxd4 {[%clk 0:02:58.9]}
5... Bb4 {[%clk 0:02:58.3]} 6. Nxc6 {[%clk 0:02:56.6]} 6... bxc6 {[%clk
0:02:59.2]} 7. Bd3 {[%clk 0:02:56.6]} 7... d5 {[%clk 0:02:59.3]} 8. Bd2 {[%clk
0:02:54.2]} 8... O-O {[%clk 0:02:57.8]} 9. O-O {[%clk 0:02:54.3]} 9... Re8
{[%clk 0:02:54.7]} 10. Nxd5 {[%clk 0:02:52.6]} 10... cxd5 {[%clk 0:02:48.3]} 11.
Bxb4 {[%clk 0:02:50.3]} 11... Nxe4 {[%clk 0:02:47.7]} 12. f3 {[%clk 0:02:43.4]}
12... Nf6 {[%clk 0:02:44.6]} 13. Qd2 {[%clk 0:02:39.7]} 13... Be6 {[%clk
0:02:40.3]} 14. Rae1 {[%clk 0:02:36.6]} 14... Rb8 {[%clk 0:02:37.7]} 15. Bc5
{[%clk 0:02:29.9]} 15... c6 {[%clk 0:02:30]} 16. b3 {[%clk 0:02:26.1]} 16... a5
{[%clk 0:02:27.7]} 17. Bd4 {[%clk 0:02:23.3]} 17... Ra8 {[%clk 0:02:24.8]} 18.
a4 {[%clk 0:02:20.8]} 18... Nd7 {[%clk 0:02:20.6]} 19. f4 {[%clk 0:02:15.9]}
19... f6 {[%clk 0:02:12.9]} 20. Qf2 {[%clk 0:02:14.1]} 20... Bf7 {[%clk
0:02:04.7]} 21. Qh4 {[%clk 0:01:59.4]} 21... Nf8 {[%clk 0:02:04.5]} 22. Bc5
{[%clk 0:01:57.2]} 22... Ng6 {[%clk 0:01:57.4]} 23. Qh3 {[%clk 0:01:40.3]} 23...
Qc8 {[%clk 0:01:56.7]} 24. Bf5 {[%clk 0:01:36.4]} 24... Qc7 {[%clk 0:01:52]} 25.
g3 {[%clk 0:01:17.8]} 25... Rad8 {[%clk 0:01:45.3]} 26. c3 {[%clk 0:00:38.9]}
26... Qb8 {[%clk 0:01:37.8]} 27. b4 {[%clk 0:00:38]} 27... axb4 {[%clk
0:01:36.8]} 28. cxb4 {[%clk 0:00:37.4]} 28... Rxe1 {[%clk 0:01:36.2]} 29. Rxe1
{[%clk 0:00:36.9]} 29... Re8 {[%clk 0:01:36.7]} 30. Be6 {[%clk 0:00:28.6]} 30...
Bxe6 {[%clk 0:01:25.6]} 31. Rxe6 {[%clk 0:00:27.2]} 31... Kf7 {[%clk 0:01:23.5]}
32. f5 {[%clk 0:00:19.2]} 32... Rxe6 {[%clk 0:01:12.7]} 33. fxe6+ {[%clk
0:00:18.7]} 33... Kg8 {[%clk 0:01:11.5]} 34. e7 {[%clk 0:00:17.1]} 34... Qe8
{[%clk 0:01:11.1]} 35. Qe6+ {[%clk 0:00:15.7]} 35... Kh8 {[%clk 0:01:11.3]} 36.
a5 {[%clk 0:00:14.8]} 36... h5 {[%clk 0:01:04.4]} 37. a6 {[%clk 0:00:13.7]}
37... Nxe7 {[%clk 0:01:03.1]} 38. Qxe7 {[%clk 0:00:13.2]} 38... Qc8 {[%clk
0:01:00.6]} 39. Qf8+ {[%clk 0:00:13]} 39... Qxf8 {[%clk 0:01:00]} 40. Bxf8
{[%clk 0:00:13.9]} 40... d4 {[%clk 0:00:13.8]} 41. a7 {[%clk 0:00:12.7]} 41...
d3 {[%clk 0:00:14.2]} 42. a8=Q {[%clk 0:00:13.6]} 42... d2 {[%clk 0:00:14.5]}
43. Qd8 {[%clk 0:00:12]} 43... Kg8 {[%clk 0:00:11.9]} 44. Qxd2 {[%clk
0:00:11.9]} 44... Kxf8 {[%clk 0:00:11.5]} 45. Qc3 {[%clk 0:00:12.8]} 1-0